bitfinex/quotes_SOLUSD_20250425
["timestamp","ask_amount","ask_price","bid_price","bid_amount"]
[1745600570535,1.551,152.67,152.62,16.50022876]
[1745600570814,1.551,152.67,152.63,16.50022876]
[1745600571528,6.2573,152.69,152.64,16.50022876]
[1745600571529,0.063,152.69,152.64,16.50022876]
[1745600571696,0.063,152.69,152.65,16.50022876]
[1745600571895,0.063,152.69,152.66,16.50022876]
[1745600572108,0.063,152.69,152.66,98.55022876]
[1745600572400,0.063,152.69,152.66,82.05]
[1745600574099,0.063,152.69,152.66,78.46561018]
[1745600575331,0.063,152.69,152.68,16.50022876]
[1745600576198,0.063,152.69,152.67,16.50022876]
[1745600576398,0.063,152.69,152.66,94.96583894]
[1745600576937,0.063,152.69,152.66,78.46561018]
[1745600577228,0.063,152.69,152.68,16.50022876]
[1745600577598,0.063,152.69,152.68,23.04987507]
[1745600577903,0.063,152.69,152.68,16.50022876]
[1745600579302,0.063,152.69,152.68,23.04987507]
[1745600579504,0.063,152.69,152.68,16.50022876]
[1745600580000,0.063,152.69,152.67,16.50022876]
[1745600580204,0.063,152.69,152.67,94.96583894]
[1745600580444,0.063,152.69,152.68,16.50022876]
[1745600582157,0.063,152.69,152.67,78.46561018]
[1745600582323,0.063,152.69,152.67,94.96583894]
[1745600585050,0.063,152.69,152.67,78.46561018]
[1745600587531,0.063,152.69,152.68,16.50022876]
[1745600588079,0.063,152.69,152.68,94.96583894]
[1745600588233,0.063,152.69,152.68,113.75764937]
[1745600588437,0.063,152.69,152.68,120.30729568]
[1745600589158,0.03,152.7,152.69,78.54477175]
[1745600589371,0.03,152.7,152.69,115.00374567]
[1745600590247,0.03,152.72,152.71,0.14216157]
[1745600590558,0.03,152.72,152.71,72.26062758]
[1745600591274,0.03,152.72,152.71,55.76039882]
[1745600591968,0.03,152.72,152.71,72.26062758]
[1745600592358,0.03,152.74,152.72,18.64964886]
[1745600592670,0.03,152.74,152.73,41.69737974]
[1745600594296,0.03,152.74,152.73,16.50022876]
[1745600594572,0.03,152.74,152.73,41.69737974]
[1745600594966,0.03,152.74,152.73,35.14987762]
[1745600595279,0.03,152.74,152.73,41.69737974]
[1745600595476,0.03,152.74,152.73,41.83954131]
[1745600595770,0.03,152.81,152.77,18.64964886]
[1745600596071,0.03,152.81,152.8,16.50022876]
[1745600596903,0.03,152.81,152.77,92.23261018]
[1745600597400,0.03,152.81,152.77,108.73283894]
[1745600597585,0.03,152.81,152.78,16.50022876]
[1745600598304,0.03,152.81,152.77,92.23261018]
[1745600598781,0.03,152.81,152.77,108.73283894]
[1745600599490,0.03,152.81,152.79,16.50022876]
[1745600599998,0.03,152.81,152.78,16.50022876]
[1745600600199,0.03,152.81,152.77,92.23261018]
[1745600601194,0.03,152.81,152.77,108.73283894]
[1745600602104,0.03,152.81,152.77,92.23261018]
[1745600602273,0.03,152.81,152.77,108.73283894]
[1745600604687,0.03,152.81,152.77,92.23261018]
[1745600606798,0.03,152.81,152.72,33.0122122]
[1745600606799,26.0,152.77,152.75,78.31261018]
[1745600608389,33.5727,152.8,152.75,78.31261018]
[1745600609293,26.0,152.8,152.76,16.50022876]
[1745600609619,0.03,152.81,152.78,16.50022876]
[1745600609835,0.03,152.81,152.78,94.81283894]
[1745600610508,0.03,152.81,152.78,78.31261018]
[1745600612128,26.03,152.81,152.78,78.31261018]
[1745600613100,0.03,152.81,152.78,101.3581509]
[1745600613402,0.03,152.81,152.8,51.65010638]
[1745600613722,0.03,152.81,152.8,94.81283894]
[1745600614112,0.03,152.81,152.8,101.35734155]
[1745600621342,0.03,152.81,152.8,78.31261018]
[1745600621544,0.03,152.81,152.8,94.81283894]
[1745600622013,0.03,152.81,152.8,101.35734155]
[1745600622209,0.03,152.81,152.8,120.14915198]
[1745600622435,26.03,152.88,152.83,78.28261018]
[1745600622745,26.03,152.88,152.84,16.50022876]
[1745600623334,26.03,152.88,152.85,16.50022876]
[1745600623825,26.03,152.88,152.84,16.50022876]
[1745600624227,26.03,152.88,152.84,23.04295035]
[1745600624524,26.03,152.88,152.84,16.50022876]
[1745600624728,26.03,152.88,152.83,78.28261018]
[1745600624914,26.03,152.88,152.83,94.78283894]
[1745600625116,26.03,152.88,152.84,16.50022876]
[1745600625330,0.03,152.88,152.84,16.50022876]
[1745600625526,26.03,152.88,152.84,16.50022876]
[1745600627139,26.03,152.88,152.84,94.78283894]
[1745600627438,26.03,152.88,152.85,16.50022876]
[1745600629151,0.03,152.88,152.86,16.50022876]
[1745600629750,0.03,152.88,152.85,78.28261018]
[1745600630348,1.5844,152.87,152.83,78.28261018]
[1745600631340,0.03,152.88,152.84,87.06037762]
[1745600631550,0.03,152.9,152.89,26.0]
[1745600631718,0.03,152.97,152.9,18.64964886]
[1745600631924,0.03,152.97,152.92,16.50022876]
[1745600632818,0.03,152.97,152.9,30.38022876]
[1745600633357,1.6267,152.95,152.9,13.88]
[1745600633858,26.0,152.94,152.9,13.88]
[1745600635071,0.9054808,152.93,152.9,13.88]
[1745600635953,0.9054808,152.93,152.9,36.92044518]
[1745600638550,0.9054808,152.93,152.91,16.50022876]
[1745600638850,0.9054808,152.93,152.91,94.78283894]
[1745600639777,0.9054808,152.93,152.91,101.32256086]
[1745600639946,0.9054808,152.93,152.91,94.78283894]
[1745600640677,0.9054808,152.93,152.91,101.32262247]
[1745600641052,0.9054808,152.93,152.91,94.78283894]
[1745600641265,0.03,152.97,152.93,78.28261018]
[1745600641477,0.03,152.97,152.96,16.50022876]
[1745600641973,0.03,152.97,152.96,23.03788566]
[1745600642347,0.03,152.97,152.96,6.5376569]
[1745600642547,0.03,152.97,152.96,16.50022876]
[1745600643681,0.03,152.97,152.95,23.03820152]
[1745600644042,0.03,152.97,152.96,16.50022876]
[1745600645953,0.03,152.97,152.96,23.03788566]
[1745600647652,0.03,152.97,152.96,101.32049584]
[1745600649279,0.03,152.97,152.96,84.82026708]
[1745600649663,0.03,152.97,152.96,101.32049584]
[1745600657390,0.03,152.97,152.96,115.20049584]
[1745600661480,0.03,152.97,152.96,109.19788356]
[1745600667783,0.03,152.97,152.96,151.18834948]
[1745600668274,0.53,153.0,152.98,78.25261018]
[1745600668610,0.53,153.0,152.99,10.49761648]
[1745600670307,0.53,153.0,152.99,17.0339914]
[1745600672011,0.53,153.0,152.99,10.49761648]
[1745600672383,0.53,153.0,152.99,17.0339914]
[1745600674207,0.53,153.0,152.99,95.28660158]
[1745600679418,0.53,153.0,152.99,84.7889851]
[1745600679625,0.53,153.0,152.99,95.28660158]
[1745600682341,0.53,153.0,152.99,109.14660158]
[1745600685240,0.53,153.0,152.99,102.61022666]
[1745600685416,0.53,153.0,152.99,109.14660158]
[1745600686131,0.03,153.04,153.01,77.72261018]
[1745600686312,0.03,153.04,153.03,10.49761648]
[1745600687127,0.03,153.04,153.01,77.72261018]
[1745600687331,0.03,153.04,153.03,15.30565977]
[1745600687842,0.03,153.04,153.03,21.84032617]
[1745600688935,0.03,153.04,153.03,17.03228288]
[1745600689143,0.03,153.04,153.03,6.5346664]
[1745600689442,0.03,153.04,153.03,17.03228288]
[1745600690921,0.03,153.04,153.03,16.80080288]
[1745600691727,0.03,153.04,153.03,94.52341306]
[1745600691935,0.03,153.04,153.03,77.72261018]
[1745600692245,0.03,153.04,153.03,88.22022666]
[1745600692844,0.03,153.04,153.03,77.72261018]
[1745600693031,0.03,153.04,153.03,94.75489306]
[1745600697343,0.03,153.04,153.03,77.72261018]
[1745600700340,0.03,153.04,153.03,84.25727658]
[1745600700531,0.03,153.04,153.03,94.75489306]
[1745600700751,0.03,153.04,153.03,84.25727658]
[1745600701131,0.03,153.04,153.03,77.72261018]
[1745600701638,0.03,153.04,152.97,77.72261018]
[1745600701639,7.6187,153.04,152.97,77.72261018]
[1745600703160,4.15979776,153.03,152.97,77.72261018]
[1745600703649,4.15979776,153.03,152.99,10.49761648]
[1745600703852,4.15979776,153.02,153.01,10.49761648]
[1745600704048,4.15979776,153.02,153.01,88.22022666]
[1745600705553,0.03,153.04,153.01,77.72261018]
[1745600705944,1.6203,153.03,152.96,77.72261018]
[1745600706146,1.6203,153.03,152.96,88.22022666]
[1745600706460,1.6203,153.03,152.96,94.75781666]
[1745600706663,1.6203,153.03,152.97,4.81180613]
[1745600706964,27.6203,153.03,152.97,4.81180613]
[1745600707369,27.6203,153.03,152.97,21.21684992]
[1745600707660,27.6203,153.03,152.97,4.81180613]
[1745600707858,27.6203,153.03,152.98,4.81180613]
[1745600709033,27.6203,153.03,152.96,100.66520323]
[1745600709365,27.6203,153.03,152.96,94.12765397]
[1745600709763,1.6203,153.03,152.97,16.40504379]
[1745600711451,27.6203,153.03,152.97,16.40504379]
[1745600711674,27.6203,153.03,152.96,77.72261018]
[1745600712270,27.6203,153.03,152.96,94.12765397]
[1745600712952,1.6203,153.03,152.96,94.12765397]
[1745600713156,27.6203,153.03,152.96,94.12765397]
[1745600713452,27.6203,153.03,152.96,100.66529464]
[1745600714058,27.6203,153.03,152.96,94.12765397]
[1745600715273,1.6203,153.03,152.96,100.66525202]
[1745600715778,1.6203,153.03,152.96,84.26020823]
[1745600715986,27.6203,153.03,152.96,77.72261018]
[1745600716643,1.6203,153.03,152.96,77.72261018]
[1745600716847,32.28326157,153.02,152.96,77.72261018]
[1745600723088,1.6203,153.03,152.97,16.40504379]
[1745600723292,0.03,153.04,152.97,16.40504379]
[1745600723293,0.03,153.04,152.99,16.40504379]
[1745600723778,26.0,153.03,152.98,16.40504379]
[1745600724489,0.03,153.04,152.98,16.40504379]
[1745600724799,26.0,153.03,152.98,16.40504379]
[1745600724993,26.0,153.03,152.97,77.72261018]
[1745600728998,26.0,153.03,152.97,88.22361945]
[1745600732408,0.03,153.04,153.02,10.50100927]
[1745600732611,0.03,153.04,153.03,10.50100927]
[1745600734208,0.03,153.04,153.03,17.03567567]
[1745600735321,0.03,153.04,153.03,22.92230229]
[1745600735681,0.03,153.04,153.03,100.64491247]
[1745600736827,0.03,153.04,153.03,135.82435879]
[1745600736984,0.03,153.1,153.09,16.38763589]
[1745600737177,0.03,153.1,153.09,94.11024607]
[1745600738608,0.03,153.1,153.09,77.72261018]
[1745600741206,0.03,153.1,153.09,94.11024607]
[1745600741383,0.03,153.1,153.09,119.29200022]
[1745600741585,0.03,153.1,153.09,119.43416179]
[1745600742801,0.03,153.1,153.09,125.98836179]
[1745600742984,18.64964886,153.23,153.12,77.72261018]
[1745600743188,18.64964886,153.23,153.12,94.11024607]
[1745600743384,26.0,153.2,153.12,94.11024607]
[1745600744516,26.0,153.2,153.12,77.72261018]
[1745600744517,26.0,153.18,153.12,77.72261018]
[1745600744723,32.5199,153.2,153.12,94.11024607]
[1745600745304,1.6224,153.17,153.12,94.11024607]
[1745600745502,1.574,153.23,153.13,18.64964886]
[1745600745705,1.574,153.23,153.18,16.38763589]
[1745600746020,1.574,153.23,153.18,77.72261018]
[1745600747614,27.574,153.23,153.18,77.72261018]
[1745600747938,26.0,153.21,153.18,77.72261018]
[1745600750322,26.0,153.21,153.15,94.11024607]
[1745600750622,26.0,153.22,153.15,94.11024607]
[1745600750937,1.574,153.23,153.15,94.11024607]
[1745600751243,26.0,153.22,153.16,16.38763589]
[1745600751439,26.0,153.22,153.15,77.72261018]
[1745600751917,26.0,153.21,153.15,77.72261018]
[1745600754737,26.0,153.21,153.09,84.27681018]
[1745600754738,18.79181043,153.2,153.09,84.27681018]
[1745600754944,26.0,153.17,153.09,94.11024607]
[1745600755121,26.0,153.17,153.09,77.72261018]
[1745600755322,26.0,153.17,153.1,16.38763589]
[1745600758247,26.0,153.18,153.11,16.38763589]
[1745600758842,26.0,153.18,153.09,77.72261018]
[1745600759026,26.0,153.18,153.09,94.11024607]
[1745600759549,26.0,153.18,153.09,100.6422531]
[1745600760253,18.88941311,153.23,153.13,16.38763589]
[1745600760254,8.24247254,153.23,153.13,16.38763589]
[1745600760552,26.0,153.2,153.14,16.38763589]
[1745600761447,26.0,153.2,153.14,77.72261018]
[1745600761954,26.0,153.2,153.1,16.38763589]
[1745600761955,26.0,153.18,153.1,16.38763589]
[1745600762119,26.0,153.18,153.1,94.11024607]
[1745600762532,26.0,153.16,153.1,77.72261018]
[1745600762738,27.5792,153.16,153.1,77.72261018]
[1745600763553,27.5792,153.16,153.11,16.38763589]
[1745600763859,27.5792,153.16,153.1,77.72261018]
[1745600768532,34.10835999,153.16,153.1,77.72261018]
[1745600768857,34.10835999,153.16,153.08,91.54261018]
[1745600769056,26.0,153.14,153.08,91.54261018]
[1745600769658,27.5792,153.16,153.08,107.93024607]
[1745600769844,26.0,153.14,153.08,107.93024607]
[1745600770045,26.0,153.14,153.08,91.54261018]
[1745600771663,26.14216157,153.15,153.08,91.54261018]
[1745600771841,32.67173862,153.15,153.08,77.72261018]
[1745600772357,26.0,153.14,153.08,77.72261018]
[1745600773766,1.5792,153.16,153.08,100.64273215]
[1745600773945,1.5792,153.16,153.09,16.38763589]
[1745600774148,1.5792,153.16,153.08,94.11024607]
[1745600774465,6.58900563,153.19,153.14,16.38763589]
[1745600774667,32.58900563,153.19,153.12,16.38763589]
[1745600774870,32.58900563,153.19,153.12,77.72261018]
[1745600775246,6.58900563,153.19,153.13,16.38763589]
[1745600775574,32.58900563,153.19,153.12,77.72261018]
[1745600777183,32.58900563,153.19,153.12,100.64104337]
[1745600777481,32.58900563,153.19,153.14,16.38763589]
[1745600777681,32.58900563,153.19,153.13,16.38763589]
[1745600778270,32.58900563,153.19,153.12,77.72261018]
[1745600779272,39.11688886,153.19,153.12,77.72261018]
[1745600779478,26.0,153.16,153.12,77.72261018]
[1745600780480,26.0,153.16,153.09,77.72261018]
[1745600781192,26.0,153.15,153.09,77.72261018]
[1745600781750,26.0,153.14,153.09,77.72261018]
[1745600782971,26.0,153.13,153.07,77.72261018]
[1745600783379,0.14216157,153.12,153.07,77.72261018]
[1745600783761,18.79181043,153.12,153.07,77.72261018]
[1745600784095,18.79181043,153.12,153.06,0.063]
[1745600784385,38.79181043,153.12,153.06,0.063]
[1745600784596,0.14216157,153.12,153.06,0.063]
[1745600785389,26.0,153.13,153.06,0.063]
[1745600786706,26.0,153.13,153.08,16.38763589]
[1745600787011,27.5401,153.15,153.08,16.38763589]
[1745600787798,1.5401,153.15,153.08,16.38763589]
[1745600788101,27.5401,153.15,153.07,16.38763589]
[1745600789068,27.5401,153.15,153.08,16.38763589]
[1745600789272,27.5401,153.15,153.07,16.38763589]
[1745600789491,27.5401,153.15,153.07,22.92057276]
[1745600789696,27.5401,153.15,153.07,16.38763589]
[1745600789904,27.5401,153.15,153.07,22.92057514]
[1745600790067,27.5401,153.15,153.08,16.38763589]
[1745600790703,27.5401,153.15,153.07,16.38763589]
[1745600791399,27.5401,153.15,153.07,77.72261018]
[1745600791576,26.0,153.13,153.07,77.72261018]
[1745600792682,1.5401,153.15,153.08,16.38763589]
[1745600793005,1.5401,153.15,153.07,84.25528424]
[1745600793006,1.5401,153.15,153.09,16.38763589]
[1745600793805,26.0,153.16,153.1,16.38763589]
[1745600794013,8.23860563,153.19,153.12,16.38763589]
[1745600794202,8.23860563,153.19,153.12,77.72261018]
[1745600794512,26.0,153.16,153.12,77.72261018]
[1745600796627,18.79181043,153.15,153.07,77.72261018]
[1745600797230,18.79181043,153.15,153.07,94.11024607]
[1745600798687,18.79181043,153.15,153.07,77.72261018]
[1745600799495,18.79181043,153.15,153.07,94.11024607]
[1745600799889,25.32137717,153.15,153.07,77.72261018]
[1745600800091,18.79181043,153.15,153.07,77.72261018]
[1745600800320,0.14216157,153.15,153.07,77.72261018]
[1745600801122,26.0,153.14,153.08,16.38763589]
[1745600801302,13.82,153.17,153.09,16.38763589]
[1745600801514,13.82,153.17,153.1,16.38763589]
[1745600802397,13.82,153.17,153.09,16.38763589]
[1745600803202,13.82,153.17,153.1,16.38763589]
[1745600803529,6.58900563,153.19,153.14,16.38763589]
[1745600803836,6.58900563,153.19,153.15,16.38763589]
[1745600805620,6.58900563,153.19,153.14,77.72261018]
[1745600805921,6.58900563,153.19,153.14,94.11024607]
[1745600806227,6.58900563,153.19,153.14,77.72261018]
[1745600813822,13.11690137,153.19,153.11,77.72261018]
[1745600814132,26.0,153.2,153.11,77.72261018]
[1745600814332,26.0,153.2,153.11,84.25381382]
[1745600814520,26.0,153.2,153.11,77.72261018]
[1745600814730,26.0,153.2,153.12,16.38763589]
[1745600816245,26.0,153.2,153.12,22.91845373]
[1745600816541,26.0,153.2,153.13,16.38763589]
[1745600816839,0.14216157,153.22,153.14,16.38763589]
[1745600817541,27.6385,153.23,153.14,94.11024607]
[1745600818046,0.14216157,153.22,153.14,77.72261018]
[1745600818828,26.0,153.2,153.14,77.72261018]
[1745600819522,0.14216157,153.22,153.14,77.72261018]
[1745600819818,26.0,153.21,153.15,16.38763589]
[1745600820349,26.0,153.21,153.14,77.72261018]
[1745600820521,26.0,153.21,153.14,94.11024607]
[1745600820846,26.0,153.21,153.14,77.72261018]
[1745600821843,26.0,153.19,153.14,77.72261018]
[1745600824365,26.0,153.21,153.14,77.72261018]
[1745600825164,26.0,153.2,153.14,77.72261018]
[1745600825841,1.6385,153.23,153.14,94.11024607]
[1745600826044,27.6385,153.23,153.15,16.38763589]
[1745600826239,27.6385,153.23,153.16,16.38763589]
[1745600827443,26.0,153.23,153.17,16.38763589]
[1745600828264,26.0,153.23,153.16,94.11024607]
[1745600828851,26.0,153.23,153.16,100.6393512]
[1745600829458,26.0,153.23,153.16,94.11024607]
[1745600830269,26.0,153.23,153.16,100.63930742]
[1745600830472,26.0,153.23,153.16,77.72261018]
[1745600830659,26.0,153.23,153.16,94.11024607]
[1745600830967,26.0,153.23,153.16,100.63923505]
[1745600831177,26.0,153.23,153.17,16.38763589]
[1745600832976,0.9054808,153.24,153.19,16.38763589]
[1745600833184,0.9054808,153.24,153.19,94.11024607]
[1745600833481,0.9054808,153.24,153.19,77.72261018]
[1745600834462,7.43120607,153.24,153.19,77.72261018]
[1745600834649,0.9054808,153.24,153.19,77.72261018]
[1745600836164,7.43119977,153.24,153.19,77.72261018]
[1745600836888,26.0,153.23,153.19,77.72261018]
[1745600837879,0.9054808,153.24,153.19,77.72261018]
[1745600839685,0.9054808,153.24,153.19,94.11024607]
[1745600848273,0.9054808,153.24,153.19,77.72261018]
[1745600848994,0.9054808,153.24,153.19,94.11024607]
[1745600849193,0.9054808,153.24,153.2,16.38763589]
[1745600849502,0.8054808,153.24,153.21,16.38763589]
[1745600849874,0.8054808,153.24,153.2,16.38763589]
[1745600850695,0.8054808,153.24,153.21,16.38763589]
[1745600850906,0.8054808,153.24,153.22,16.38763589]
[1745600851275,0.8054808,153.24,153.23,16.38763589]
[1745600851491,0.8054808,153.24,153.23,88.18554269]
[1745600851898,0.8054808,153.24,153.23,94.71167986]
[1745600852068,0.8054808,153.24,153.23,88.18554269]
[1745600852293,0.8054808,153.24,153.23,77.72261018]
[1745600856119,0.8054808,153.24,153.23,84.24874735]
[1745600856296,0.8054808,153.24,153.23,94.71167986]
[1745600856610,0.8054808,153.24,153.23,88.18554269]
[1745600857127,0.8054808,153.24,153.23,94.71167986]
[1745600857795,0.8054808,153.24,153.23,113.36132872]
[1745600858001,0.03,153.26,153.25,6.52528548]
[1745600858397,0.03,153.26,153.24,93.90567864]
[1745600858824,0.03,153.26,153.25,10.46293251]
[1745600860305,0.03,153.26,153.25,16.98821799]
[1745600861506,0.03,153.26,153.25,10.46293251]
[1745600861706,0.03,153.26,153.25,87.38006189]
[1745600863131,0.03,153.26,153.25,93.90534737]
[1745600865229,0.03,153.26,153.25,76.91712938]
[1745600865434,0.03,153.26,153.25,87.38006189]
[1745600865639,0.03,153.26,153.25,93.90534737]
[1745600869434,0.03,153.26,153.25,112.55499623]
[1745600871334,0.03,153.26,153.25,102.09206372]
[1745600871510,0.03,153.26,153.25,93.90534737]
[1745600873639,0.03,153.27,153.26,83.41198909]
[1745600873823,0.03,153.27,153.26,93.8749216]
[1745600876061,0.03,153.27,153.26,76.88712938]
[1745600876224,0.03,153.27,153.26,87.35006189]
[1745600876730,0.03,153.27,153.26,76.88712938]
[1745600878024,0.03,153.27,153.24,13.8]
[1745600878221,0.03,153.27,153.23,76.88712938]
[1745600878531,0.03,153.27,153.23,83.41310159]
[1745600878727,0.03,153.27,153.23,76.88712938]
[1745600879354,0.03,153.27,153.23,83.41325778]
[1745600879525,0.03,153.27,153.23,76.88712938]
[1745600880052,1.5498,153.28,153.23,76.88712938]
[1745600884153,32.4485,153.26,153.19,76.88712938]
[1745600884450,1.5663,153.24,153.19,76.88712938]
[1745600886553,26.0,153.23,153.19,76.88712938]
[1745600887326,1.5663,153.24,153.19,76.88712938]
[1745600888954,0.14216157,153.23,153.17,0.063]
[1745600889265,26.0,153.21,153.17,0.063]
[1745600889424,32.5271407,153.21,153.17,0.063]
[1745600889620,7.781,153.2,153.17,0.063]
[1745600892565,26.0,153.23,153.17,0.063]
[1745600892729,26.0,153.23,153.17,10.52593251]
[1745600894156,26.0,153.23,153.17,87.41306189]
[1745600894356,1.6435,153.24,153.19,10.46293251]
[1745600894849,1.6435,153.24,153.18,10.46293251]
[1745600895148,1.6435,153.24,153.19,10.46293251]
[1745600896053,1.6435,153.24,153.19,16.99071444]
[1745600896232,1.6435,153.24,153.19,93.87784382]
[1745600896653,1.6435,153.24,153.19,87.35006189]
[1745600899838,1.6435,153.24,153.19,76.88712938]
[1745600900042,26.0,153.22,153.19,76.88712938]
[1745600900238,26.0,153.21,153.17,0.063]
[1745600902253,0.14216157,153.23,153.17,0.063]
[1745600902434,26.0,153.22,153.17,0.063]
[1745600905138,26.14216157,153.23,153.17,0.063]
[1745600905341,26.0,153.23,153.17,10.52593251]
[1745600905846,26.0,153.23,153.17,87.41306189]
[1745600906047,26.0,153.23,153.17,76.95012938]
[1745600906364,26.0,153.23,153.17,87.41306189]
[1745600906669,26.0,153.23,153.17,93.94175278]
[1745600906966,26.0,153.23,153.17,87.41306189]
[1745600908151,26.0,153.23,153.17,76.95012938]
[1745600908659,26.0,153.23,153.17,87.41306189]
[1745600910972,26.0,153.23,153.17,76.95012938]
[1745600914270,26.0,153.22,153.17,76.95012938]
[1745600914472,26.0,153.21,153.17,76.95012938]
[1745600914658,26.0,153.22,153.17,76.95012938]
[1745600917867,26.14216157,153.22,153.17,76.95012938]
[1745600920275,26.0,153.22,153.17,76.95012938]
[1745600923856,32.52656328,153.22,153.17,76.95012938]
[1745600924057,26.0,153.22,153.17,76.95012938]
[1745600926156,26.0,153.22,153.17,87.41306189]
[1745600926781,26.0,153.22,153.17,76.95012938]
[1745600940306,26.0,153.23,153.17,76.95012938]
[1745600940692,26.0,153.23,153.17,87.41306189]
[1745600941092,26.0,153.23,153.17,76.95012938]
[1745600941404,0.14216157,153.25,153.17,76.95012938]
[1745600941405,26.0,153.22,153.17,76.95012938]
[1745600941791,26.0,153.22,153.17,87.41306189]
[1745600942387,9.72001585,153.24,153.19,10.46293251]
[1745600942590,35.72001585,153.24,153.19,10.46293251]
[1745600942912,35.72001585,153.24,153.17,76.95012938]
[1745600943109,26.0,153.21,153.17,76.95012938]
[1745600944090,34.1864201,153.24,153.17,76.95012938]
[1745600944393,1.80286157,153.24,153.17,76.95012938]
[1745600944703,26.0,153.2,153.18,4.82924991]
[1745600945501,26.0,153.2,153.17,76.95012938]
[1745600946402,26.0,153.18,153.17,0.063]
[1745600948020,46.40351043,153.18,153.17,0.063]
[1745600948310,26.0,153.14,153.11,76.88712938]
[1745600949090,0.14216157,153.13,153.11,76.88712938]
[1745600949417,0.14216157,153.13,153.1,0.063]
[1745600949912,44.79181043,153.13,153.1,0.063]
[1745600950299,1.6117,153.12,153.1,0.063]
[1745600950506,26.0,153.12,153.1,0.063]
[1745600951629,27.6117,153.16,153.1,76.95012938]
[1745600951792,26.0,153.14,153.1,76.95012938]
[1745600952215,26.0,153.14,153.1,87.41306189]
[1745600952395,26.0,153.14,153.1,93.94463907]
[1745600953092,26.0,153.14,153.1,87.41306189]
[1745600953616,26.0,153.14,153.1,93.9446743]
[1745600954119,26.0,153.14,153.1,83.48174179]
[1745600954422,26.0,153.14,153.1,93.9446743]
[1745600955418,13.8,153.17,153.13,10.46293251]
[1745600955592,26.0,153.18,153.1,90.11014179]
[1745600955900,26.0,153.18,153.11,10.46293251]
[1745600956101,1.6539,153.2,153.11,10.46293251]
[1745600956308,26.0,153.18,153.11,10.46293251]
[1745600956814,26.0,153.18,153.12,6.53082549]
[1745600957398,26.0,153.18,153.12,16.993758]
[1745600958013,26.0,153.18,153.12,6.53082549]
[1745600958319,26.0,153.18,153.13,10.46293251]
[1745600958722,26.0,153.18,153.12,10.46293251]
[1745600960323,26.0,153.18,153.14,10.46293251]
[1745600960517,26.0,153.18,153.14,87.35006189]
[1745600960691,13.8,153.21,153.14,93.87969278]
[1745600960895,13.8,153.21,153.17,10.46293251]
[1745600960896,26.0,153.21,153.17,10.46293251]
[1745600961202,26.0,153.21,153.16,10.46293251]
[1745600963299,26.0,153.21,153.15,16.99213514]
[1745600964303,26.0,153.21,153.15,10.46293251]
[1745600964617,26.0,153.21,153.15,87.35006189]
[1745600964924,26.0,153.21,153.15,93.87951953]
[1745600967020,26.0,153.22,153.17,10.46293251]
[1745600967211,26.0,153.22,153.17,87.35006189]
[1745600969719,26.0,153.22,153.17,76.88712938]
[1745600970025,26.0,153.22,153.17,87.35006189]
[1745600970411,26.0,153.22,153.17,76.88712938]
[1745600971038,26.0,153.2,153.17,76.88712938]
[1745600971216,26.0,153.2,153.13,76.88712938]
[1745600971722,0.14216157,153.19,153.13,76.88712938]
[1745600975334,26.0,153.2,153.13,76.88712938]
[1745600975755,26.0,153.2,153.13,93.8803755]
[1745600976077,26.0,153.2,153.14,10.46293251]
[1745600976863,26.0,153.2,153.13,93.8803755]
[1745600977363,26.0,153.19,153.13,93.8803755]
[1745600977653,26.0,153.19,153.13,83.41744299]
[1745600977864,26.0,153.19,153.13,93.8803755]
[1745600978034,26.0,153.19,153.14,10.46293251]
[1745600978630,26.0,153.2,153.15,10.46293251]
[1745600979136,26.0,153.2,153.15,87.35006189]
[1745600979464,1.5945,153.24,153.16,10.46293251]
[1745600979660,26.0,153.22,153.16,87.35006189]
[1745600981567,26.0,153.22,153.16,76.88712938]
[1745600981955,26.0,153.2,153.16,76.88712938]